Cogmind - Beta 9.4 @@@ ROGUE MODE // 2020.01.12 @ 22:53:52 // Winter2019/RPGLIKE Player: K.Ioz Result: Destroyed by S-10 Pest with Light Assault Rifle Performance ------------- Evolutions (0) 0 Regions Visited (1) 200 Robots Destroyed (10) 50 Value Destroyed (264) 264 Prototype IDs (0) 0 Alien Tech Used (0) 0 Bonus (0) 0 TOTAL SCORE: 514 Bonus ------- None Cogmind --------- Core Integrity 0/600 Matter 300/300 Energy 100/100 System Corruption 0% Temperature Cool (0) Movement Core (50) Location -10/Materials Parts ------- > --- POWER (1) -------- (None) > --- PROPULSION (1) --- (None) > --- UTILITY (1) ------ Sensor Array > --- WEAPON (1) ------- Mining Claw > --- INVENTORY (0) ---- (None) Peak State ------------ > --- POWER ------------ Ion Engine > --- PROPULSION ------- Hover Unit > --- UTILITY ---------- Sensor Array > --- WEAPON ----------- Mining Claw > --- INVENTORY -------- (None) [Rating: 4] Favorites ----------- Power Ion Engine Engine Ion Engine Propulsion Aluminum Leg Leg Aluminum Leg Hover Unit Hover Unit Utility Sensor Array Device Sensor Array Weapon Mining Claw Ballistic Gun Assault Rifle Slashing Weapon Mining Claw Build | -11 -10 ------- Run | Scr Mat Slots Evolved . | . . Power . | . . Propulsion . | . . Utility . | . . Weapon . | . . Parts Attached 7 | 3 4 Power 2 | 1 1 Engine 2 | 1 1 Core . | . . Reactor . | . . Propulsion 2 | 1 1 Treads . | . . Leg 1 | 1 . Wheel . | . . Hover 1 | . 1 Flight . | . . Utility 1 | . 1 Device 1 | . 1 Storage . | . . Processor . | . . Hackware . | . . Protection . | . . Artifact . | . . Weapon 2 | 1 1 Energy Gun . | . . Energy Cannon . | . . Ballistic Gun 1 | 1 . Ballistic Cannon . | . . Launcher . | . . Special Weapon . | . . Impact Weapon . | . . Slashing Weapon 1 | . 1 Piercing Weapon . | . . Special Melee Weapon . | . . Unidentified Prototypes . | . . Parts Lost 2 | . 2 Power 1 | . 1 Propulsion 1 | . 1 Utility . | . . Weapon . | . . Highest Loss Streak 2 | . 2 Average Slot Usage (%) 83 | . 83 Engine 24 | . 24 Leg 14 | . 14 Hover 10 | . 10 Device 10 | . 10 Ballistic Gun 3 | . 3 Slashing Weapon 21 | . 21 Naked Turns . | . . Heaviest Build 8 | 7 8 Greatest Support 10 | 10 10 Greatest Overweight (x) 2 | . 2 Average Overweight (x) . | . . Largest Inventory Capacity . | . . Average Capacity . | . . Most Carried . | . . Average Carried . | . . Final Capacity . | . . Final Carried . | . . Class Distribution -------------------- 84% | Hacker-Mutant 15% | Mutant Dominant Class ---------------- Hacker-Mutant | -10/Materials Resources | -11 -10 ----------- Run | Scr Mat Matter Collected 321 | 230 91 Remotely . | . . Salvage Created 297 | . 297 Parts 23 | . 23 Haulers Intercepted . | . . Recyclers Shooed . | . . Parts Field Recycled . | . . Retrieved Matter . | . . Parts Self-Destructed . | . . Prevented . | . . Kills | -11 -10 ------- Run | Scr Mat Combat Hostiles Destroyed 7 | . 7 Melee 5 | . 5 Guns 2 | . 2 Classes Destroyed 3 | . 3 Watcher 3 | . 3 Swarmer 2 | . 2 Grunt 5 | . 5 Best Kill Streak 2 | . 2 Combat Bots Only 2 | . 2 Max Kills in Single Turn 1 | . 1 Gunslinging . | . . Exploded . | . . Melee 1 | . 1 Uniques/NPCs Destroyed . | . . Combat | -11 -10 -------- Run | Scr Mat Damage Taken 907 | . 907 Core 777 | . 777 Absorbed by Shields . | . . Redirected to Core 399 | . 399 Core Remaining (%) 100 | 100 . Volleys Fired 17 | . 17 Largest 1 | . 1 Hottest 20 | . 20 Shots Fired 17 | . 17 Gun 17 | . 17 Cannon . | . . Launcher . | . . Special . | . . Kinetic 17 | . 17 Thermal . | . . Explosive . | . . Electromagnetic . | . . Robot Hit Streak 5 | . 5 Robot Miss Streak 2 | . 2 Penetration Max . | . . Secondary Targets . | . . Shots Hit Robots 23 | . 23 Core Hits 13 | . 13 Critical Hits . | . . Critical Kills . | . . Critical Parts Destroyed . | . . Melee Attacks 36 | . 36 Impact . | . . Slashing 36 | . 36 Piercing . | . . Sneak Attacks . | . . Combat Hostiles . | . . Follow-up Attacks . | . . Damage Inflicted 488 | . 488 Guns 69 | . 69 Cannons . | . . Explosions . | . . Melee 419 | . 419 Ramming . | . . Kinetic 69 | . 69 Thermal . | . . Explosive . | . . Electromagnetic . | . . Impact . | . . Slashing 419 | . 419 Piercing . | . . Highest Corruption . | . . Average Corruption . | . . Corruption Purged . | . . Overload Shots . | . . Overflow Damage 6 | . 6 Projectiles . | . . Explosions . | . . Melee 6 | . 6 Knockbacks . | . . Impact . | . . Kinetic . | . . Secondary . | . . Self-Inflicted Damage . | . . Shots . | . . Rammed . | . . Targets Rammed . | . . Kicked . | . . Crushed . | . . Highest Temperature 5 | . 5 Average Temperature 5 | . 5 Received Heat Transfer 213 | . 213 Siege Activations . | . . Robots Corrupted . | . . Combat Hostiles . | . . Parts Fried . | . . Impact Corruptions . | . . Robots Melted . | . . Combat Hostiles . | . . Parts Melted . | . . Heat Transferred . | . . Parts Sabotaged . | . . Parts Stolen . | . . Parts Stripped . | . . Power Chain Reactions . | . . Missiles Intercepted . | . . Alert | -11 -10 ------- Run | Scr Mat Peak Influence 115 | . 115 Average Influence 50 | . 56 Maximum Alert Level . | . . Low Security (%) 100 | 100 100 Level 1 . | . . Level 2 . | . . Level 3 . | . . Level 4 . | . . Level 5 . | . . High Security . | . . Max Security . | . . Squads Dispatched 1 | . 1 Investigation . | . . Extermination . | . . Reinforcement 1 | . 1 Assault . | . . Garrison . | . . Intercept . | . . Construction Impeded . | . . Haulers Reinforced . | . . Stealth | -11 -10 --------- Run | Scr Mat Distress Signals 1 | . 1 Communications Jammed . | . . Distress Signals . | . . Times Spotted 16 | . 16 Peak Tracking Total 3 | . 3 Tactical Retreats . | . . Traps | -11 -10 ------- Run | Scr Mat Traps Triggered . | . . Indirectly . | . . Trap Hack Attempts . | . . Triggered . | . . Disarmed . | . . Reprogrammed . | . . Reused . | . . Traps Extracted . | . . Installed . | . . Triggered . | . . Machines | -11 -10 ---------- Run | Scr Mat Machines Disabled . | . . Max in Single Turn . | . . Machines Sabotaged . | . . Garrisons Compromised . | . . Overloaded Fab Kills . | . . Fab Network Shutdowns . | . . Hacking | -11 -10 --------- Run | Scr Mat Machines Accessed 4 | . 4 Terminals 4 | . 4 Fabricators . | . . Repair Stations . | . . Recycling Units . | . . Scanalyzers . | . . Garrison Access . | . . Total Hacks 10 | . 10 Successful 5 | . 5 Failed 5 | . 5 Catastrophic . | . . Database Lockouts . | . . Manual 4 | . 4 Terminals 10 | . 10 Fabricators . | . . Repair Stations . | . . Recycling Units . | . . Scanalyzers . | . . Garrison Access . | . . Terminal Hacks 5 | . 5 Alert Level 1 | . 1 Locate Traps 3 | . 3 Surveillance Status 1 | . 1 Fabricator Hacks . | . . Repair Station Hacks . | . . Recycling Unit Hacks . | . . Scanalyzer . | . . Garrison Access Hacks . | . . Unauthorized Hacks . | . . Terminals . | . . Fabricators . | . . Repair Stations . | . . Recycling Units . | . . Scanalyzers . | . . Garrison Access . | . . Data Cores Recovered . | . . Used . | . . Hacking Detections 3 | . 3 Full Trace Events . | . . Feedback Events . | . . Feedback Blocked . | . . Robot Schematics Acquired . | . . Robots Built . | . . Matter . | . . Time . | . . Total Robot Build Rating . | . . Part Schematics Acquired . | . . Parts Built . | . . Matter . | . . Time . | . . Total Part Build Rating . | . . Parts Repaired . | . . Time . | . . Parts Recycled . | . . Recycled Matter . | . . Retrieved Matter . | . . Retrieved Components . | . . Parts Scanalyzed . | . . Part Schematics Acquired . | . . Parts Damaged . | . . Bothacking | -11 -10 ------------ Run | Scr Mat Used RIF Installer . | . . Robots Hacked . | . . Non-combat . | . . Combat . | . . Robot Hacks Applied . | . . Relay Couplers Released . | . . Robots Rewired . | . . Allies Hacked . | . . Hacks Repelled . | . . Allies | -11 -10 -------- Run | Scr Mat Total Allies . | . . Largest Group . | . . Highest-Rated Group . | . . Highest-Rated Ally . | . . Total Orders . | . . Ally Attacks . | . . Total Damage . | . . Kills . | . . Allies Corrupted . | . . Allies Melted . | . . Intel | -11 -10 ------- Run | Scr Mat Robot Analysis Total . | . . Derelict Logs Recovered . | . . Drone Launches . | . . Drone Recoveries . | . . Exploration | -11 -10 ------------- Run | Scr Mat Turns Passed 1013 | 114 899 Spaces Moved 779 | 107 672 Core 31 | 28 3 Treads . | . . Legs 392 | 79 313 Wheels . | . . Hover 356 | . 356 Flight . | . . Fastest Speed 50 | 50 50 Average Speed 90 | 101 88 Slowest Speed 150 | 120 150 Overloaded Moves . | . . Propulsion Burnouts . | . . Robots Hopped . | . . Cave-ins Triggered . | . . Exploration Rate (%) 38 | 6 70 Regions Visited 1 Branch Regions . Pre-discovered Areas . | . . Known Exits Taken . | . . Unknown Exits Taken 1 | 1 . Scrap Searched . | . . Spaces Dug . | . . Terrain Destroyed . | . . Melee . | . . Projectile . | . . AOE . | . . Actions | -11 -10 --------- Run | Scr Mat Total 999 | 110 889 Wait 147 | 1 146 Move 778 | 106 672 Hop . | . . Pick Up . | . . Fast Attach 7 | 3 4 Attach . | . . Detach . | . . Swap . | . . Drop 3 | . 3 Fire 17 | . 17 Melee 36 | . 36 Ram . | . . Kick . | . . Crush . | . . Escape Stasis . | . . Rewire . | . . Trap . | . . Miscellaneous 11 | . 11 Route ------- -11/Scrapyard -10/Materials (discovered 3 exits: [*Mat x2] / [*Min]) History --------- Turn | Location | Event 4 | -11/Scrapyard | Discovered new exit (range 16) 115 | -11/Scrapyard | Entered Materials 463 | -10/Materials | Build established: Hacker-Mutant 713 | -10/Materials | Discovered new exit (range 9) 740 | -10/Materials | Discovered new exit (range 5) 807 | -10/Materials | Discovered new exit (range 16) 971 | -10/Materials | Core integrity fell below 50% 996 | -10/Materials | Core integrity fell below 20% 1014 | -10/Materials | Destroyed by S-10 Pest with Light Assault Rifle Last Messages --------------- 00762_ Destroyed Sensor Array. 00795_ W-16 Scout destroyed. 00807_ EXIT=FOUND 00813_ Connecting with Terminal... >>Traps(Locate) Found 6 traps in 1 array: 6x Alarm Trap Map updated. 00818_ Connecting with Terminal... 00950_ W-16 Scout sends out distress signal. 00951_ W-16 Scout destroyed. 00956_ R-06 Scavenger collects Hover Unit. 00961_ K-01 Serf collects debris. 00982_ S-10 Pest destroyed. 00985_ K-01 Serf collects debris. 00986_ R-06 Scavenger collects Lgt. Ion Engine. 00988_ K-01 Serf collects debris. 00989_ Lgt. Ion Engine destroyed. 01007_ Hover Unit destroyed. 01011_ S-10 Pest destroyed. Map ----- +----------------------------------------------------+ | ?????????????????????????????????????????????????? | | ?????????????????????????????????????????????????? | | ?????????????????????????????????????????????????? | | ?????????????????????????????????????????????????? | | ?????????????????????????????????????????????????? | | ???????????????????########???######?????????????? | | ????????????######## = [ #???# #???????????? | | ????????????# # #???# """ #???????????? | | ????????????# # """ ##### """ #???????????? | | ????????????#""" # """ # # """ #???????????? | | ??#####?????#""" # """ # < # #???????????? | | ?##"""##????#""" ! # # # """ #???????????? | | ##"|||"##???# ####+### # """ #???????????? | | #"" ""#########+## ^ ^ # """ #???????????? | | # + + #???????????? | | # < #########+## ^ ^ " # """ #???????????? | | # #?????? #^^""" T # """ #???????????? | | # #???? # """ " # """ #???????????? | | ## ##???# ==! !# """ # #???????????? | | ### ##????# =!! # """ ########???????????? | | # ####### =!! # # #???????????? | | + ######### # !!! #???????????? | | " # ? # !! #???????????? | | " # ################? # !! #???????????? | | " ###### #?????# ! =%# # #???????????? | | #????# #?????# @# # # ???? | | #????# #?????# # /? ? / ???? | | #????# #?????# !! s %# # """ # ???? | | ######## ##????# [ r # """ #???????????? | | # #????# %# # """ #???????????? | | """ # #????# # # """ #???????????? | | """ + #????# # # """ #???????????? | | """ # #????# # # +???????????? | | # #????########## ########???????????? | | ######## ##????########## #??????????????????? | | ######## #?????? ! # #??????????????????? | | =# #??????? # #??????????????????? | | [%# #??????? """ # #??????????????????? | | [* # #???????""""" # #??????????????????? | | =%!# ######??""""" # #??????????????????? | | "" " " # #??""""" + #??????????????????? | | "" "R" + #? """ # #??????????????????? | | "" """ # % ## # #??????????????????? | | ###### ## # #??????????????????? | | ####+###???## ########+## ##########?????????? | | ## ##### # #?????????? | | # #?????????? | | T ^ ^ # #?????????? | | % ######^ ^^^ # #?????????? | | ## ##### #????# + % #?????????? | +----------------------------------------------------+ Best States ------------- Heat Dissipation 25 Energy Generation 10 Energy Capacity 250 Matter Stores 300 Matter Capacity 300 Sight Range 16 Robot Scan Range 10 Terrain Scan Density 10 Resistance: EX 10 Evasion (%) 53 Offensive Hacking 20 Item Schematics ----------------- None Robot Schematics ------------------ None Fabricated ------------ Nothing Alien Tech Used ----------------- None Achievements -------------- None Challenges ------------ None RPGLIKE | -11 -10 --------- Run | Scr Mat Levels Raised . | . . XP Earned 4005 | 3000 1005 XP Spent 2550 | . 2550 Upgrades 7 | . 7 Melee Accuracy 1 | . 1 Hack Attack % 4 | . 4 EX Resistance % 2 | . 2 Protomatter Created 82 | . 82 Integrity Restored 211 | . 211 Core 177 | . 177 Parts 34 | . 34 Protomatter Decayed 9 | . 9 Game ------ Seed MediumGravityGravjet Manual? 0 Play Time 00:14:39 Cumulative 69.1 hours Start 2020.01.12 @ 22:43:15 End 2020.01.12 @ 22:53:52 Sessions 1 Manual Loads 0 Difficulty Rogue Special Mode Winter2019/RPGLIKE Game No. 59 Rogue 51 Adventurer 0 Explorer 8 Win Type - Total 0 Types 0/0/0/0/0/0/0 Lore% 37 Gallery% 40 Achievement% 36 Wizard Run 0 Options --------- ASCII 0 Keyboard 1 Movement Vi Keybinds 0 Fullscreen 1 Font 18/X11Bold Map View 76x50 Tactical HUD 1 Map Filters NONE Filters LOW_CONTRAST(47,30,31)|SHIFT_HUE(1) Steam 1 RUN: 2e330269-c5f9-4d22-b61c-127d4827df65